fUSD/lending_fUSD_20260520
["ID","MTS","AMOUNT","RATE_DAILY","PERIOD"]
[422665859,1779223858000,-164.75063604,0.00032009,2]
[422665855,1779223858000,-400.16544722,0.00032009,7]
[422665863,1779223858000,-408.26738126,0.00032009,7]
[422665857,1779223858000,-427.51114223,0.00032009,7]
[422665865,1779223858000,-669.88032282,0.00032009,2]
[422665861,1779223858000,-235.08822507,0.00032009,7]
[422665866,1779223858000,-630.40168818,0.00032009,7]
[422665868,1779223858000,-664.9239369,0.00032009,7]
[422665867,1779223858000,-578.34519179,0.00032009,7]
[422665869,1779223858000,-715.17108418,0.00032009,7]
[422665870,1779223858000,-222.57037923,0.00032009,7]
[422665850,1779223858000,-175.01328827,0.00032009,7]
[422665842,1779223858000,-290.0,0.00032,120]
[422665858,1779223858000,-168.56967375,0.00032009,2]
[422665853,1779223858000,-164.79520825,0.00032009,7]
[422665846,1779223858000,-299.14017099,0.00032004,7]
[422665821,1779223858000,-49306.29,0.000315,2]
[422665818,1779223858000,-414.90371632,0.00031405,7]
[422665828,1779223858000,-1500.0,0.00031558,15]
[422665834,1779223858000,-150.0,0.00031716,2]
[422665820,1779223858000,-310.39392091,0.00031453,2]
[422665826,1779223858000,-1000.0,0.000315,7]
[422665823,1779223858000,-200.5885028,0.000315,2]
[422665825,1779223858000,-151.0,0.000315,5]
[422665827,1779223858000,-500.0,0.00031507,2]
[422665833,1779223858000,-1300.0,0.00031714,60]
[422665824,1779223858000,-150.0,0.000315,2]
[422665830,1779223858000,-503.0,0.0003165,6]
[422665843,1779223858000,-100000.0,0.00032,7]
[422665831,1779223858000,-163.0,0.00031671,3]
[422665841,1779223858000,-192.30854507,0.00032,120]
[422665840,1779223858000,-167.42101506,0.00032,120]
[422665837,1779223858000,-77823.10477848,0.00031995,7]
[422665839,1779223858000,-20226.72598438,0.00031995,7]
[422665835,1779223858000,-500.0,0.0003189,2]
[422665836,1779223858000,-265.39,0.000319,7]
[422665829,1779223858000,-150.0,0.00031642,30]
[422665832,1779223858000,-362.1644251,0.00031703,30]
[422665838,1779223858000,-139261.55601657,0.00031995,7]
[422665911,1779223859000,-200.0,0.0003225,2]
[422665915,1779223859000,-200.0,0.0003225,2]
[422665926,1779223859000,-200.0,0.0003225,2]
[422665927,1779223859000,-200.0,0.0003225,2]
[422665914,1779223859000,-200.0,0.0003225,2]
[422665910,1779223859000,-200.0,0.0003225,2]
[422665909,1779223859000,-200.0,0.0003225,2]
[422665904,1779223859000,-200.0,0.0003225,2]
[422665913,1779223859000,-200.0,0.0003225,2]
[422665912,1779223859000,-200.0,0.0003225,2]
[422665905,1779223859000,-200.0,0.0003225,2]
[422665907,1779223859000,-200.0,0.0003225,2]
[422665908,1779223859000,-200.0,0.0003225,2]
[422665916,1779223859000,-200.0,0.0003225,2]
[422665931,1779223859000,-200.0,0.0003225,2]
[422665917,1779223859000,-200.0,0.0003225,2]
[422665919,1779223859000,-200.0,0.0003225,2]
[422665924,1779223859000,-200.0,0.0003225,2]
[422665923,1779223859000,-200.0,0.0003225,2]
[422665921,1779223859000,-200.0,0.0003225,2]
[422665918,1779223859000,-200.0,0.0003225,2]
[422665920,1779223859000,-200.0,0.0003225,2]
[422665925,1779223859000,-200.0,0.0003225,2]
[422665930,1779223859000,-200.0,0.0003225,2]
[422665928,1779223859000,-200.0,0.0003225,2]
[422665932,1779223859000,-200.0,0.0003225,2]
[422665938,1779223859000,-200.0,0.0003225,2]
[422665935,1779223859000,-200.0,0.0003225,2]
[422665903,1779223859000,-200.0,0.0003225,2]
[422665922,1779223859000,-200.0,0.0003225,2]
[422665906,1779223859000,-200.0,0.0003225,2]
[422665876,1779223859000,-368.80918184,0.00032096,5]
[422665901,1779223859000,-200.0,0.0003225,2]
[422665871,1779223859000,-343.30882661,0.00032009,7]
[422665872,1779223859000,-622.35557448,0.00032009,7]
[422665873,1779223859000,-200.0,0.00032055,2]
[422665874,1779223859000,-428.55232116,0.00032057,7]
[422665875,1779223859000,-465.59088136,0.00032057,2]
[422665878,1779223859000,-300.93239175,0.00032106,7]
[422665933,1779223859000,-200.0,0.0003225,2]
[422665877,1779223859000,-6865.5,0.000321,14]
[422665880,1779223859000,-152.0,0.00032187,30]
[422665881,1779223859000,-300.0,0.00032187,30]
[422665879,1779223859000,-157.0,0.00032161,30]
[422665882,1779223859000,-152.0,0.00032187,30]
[422665883,1779223859000,-153.0,0.00032187,30]
[422665890,1779223859000,-251.0,0.00032212,30]
[422665891,1779223859000,-390.0,0.00032212,30]
[422665885,1779223859000,-328.0,0.00032187,30]
[422665888,1779223859000,-166.94104197,0.00032212,30]
[422665889,1779223859000,-154.0,0.00032212,30]
[422665887,1779223859000,-164.0,0.00032212,30]
[422665886,1779223859000,-382.3,0.0003221,5]
[422665893,1779223859000,-500.0,0.0003225,2]
[422665892,1779223859000,-500.0,0.0003225,2]
[422665895,1779223859000,-500.0,0.0003225,2]
[422665894,1779223859000,-500.0,0.0003225,2]
[422665896,1779223859000,-500.0,0.0003225,2]
[422665897,1779223859000,-497.0,0.0003225,2]
[422665899,1779223859000,-200.0,0.0003225,2]
[422665900,1779223859000,-200.0,0.0003225,2]
[422665898,1779223859000,-200.0,0.0003225,2]
[422665902,1779223859000,-200.0,0.0003225,2]
[422665937,1779223859000,-200.0,0.0003225,2]
[422665884,1779223859000,-157.0,0.00032187,30]
[422665939,1779223859000,-200.0,0.0003225,2]
[422665980,1779223859000,-1260.73667677,0.00032612,7]
[422665971,1779223859000,-1000.0,0.000325,2]
[422665982,1779223859000,-163.0,0.00032661,11]
[422665975,1779223859000,-151.0,0.000325,7]
[422665977,1779223859000,-292.5,0.00032548,2]
[422665979,1779223859000,-852.94941663,0.00032608,2]
[422665978,1779223859000,-150.0,0.00032562,2]
[422665981,1779223859000,-831.15492112,0.00032612,7]
[422665973,1779223859000,-1000.0,0.000325,14]
[422665974,1779223859000,-1000.0,0.000325,14]
[422665976,1779223859000,-500.0,0.00032548,2]
[422665983,1779223859000,-265.39,0.000327,7]
[422665985,1779223859000,-600.0,0.0003281,60]
[422665984,1779223859000,-4912.50607181,0.000328,2]
[422665986,1779223859000,-3573.77561151,0.0003287,7]
[422665990,1779223859000,-1002.78,0.00032877,2]
[422665989,1779223859000,-500.0,0.00032876,2]
[422665987,1779223859000,-1000.0,0.00032876,30]
[422665988,1779223859000,-684.73480028,0.00032876,30]
[422665993,1779223859000,-151.0,0.00032877,7]
[422665995,1779223859000,-151.0,0.00032877,7]
[422665992,1779223859000,-151.0,0.00032877,7]
[422665991,1779223859000,-350.25,0.00032877,2]
[422665994,1779223859000,-151.0,0.00032877,7]
[422665996,1779223859000,-151.0,0.00032877,7]
[422665998,1779223859000,-1304.979961,0.00032877,7]
[422665997,1779223859000,-151.0,0.00032877,7]
[422665999,1779223859000,-1304.979961,0.00032877,7]
[422665936,1779223859000,-200.0,0.0003225,2]
[422665972,1779223859000,-1000.0,0.000325,7]
[422665969,1779223859000,-1262.48,0.00032487,7]
[422666000,1779223859000,-1304.979961,0.00032877,7]
[422665961,1779223859000,-5000.0,0.00032363,2]
[422665929,1779223859000,-200.0,0.0003225,2]
[422665970,1779223859000,-1000.0,0.000325,2]
[422665934,1779223859000,-200.0,0.0003225,2]
[422665942,1779223859000,-200.0,0.0003225,2]
[422665952,1779223859000,-159.0,0.0003225,2]
[422665941,1779223859000,-200.0,0.0003225,2]
[422665953,1779223859000,-250.0,0.00032257,7]
[422665944,1779223859000,-200.0,0.0003225,2]
[422665945,1779223859000,-200.0,0.0003225,2]
[422665943,1779223859000,-200.0,0.0003225,2]
[422665948,1779223859000,-200.0,0.0003225,2]
[422665951,1779223859000,-200.0,0.0003225,2]
[422665949,1779223859000,-200.0,0.0003225,2]
[422665950,1779223859000,-200.0,0.0003225,2]
[422665947,1779223859000,-200.0,0.0003225,2]
[422665940,1779223859000,-339.0,0.0003225,2]
[422665956,1779223859000,-2314.0,0.00032356,11]
[422665946,1779223859000,-200.0,0.0003225,2]
[422665963,1779223859000,-1129.42,0.00032428,7]
[422665964,1779223859000,-200.0,0.00032437,2]
[422665960,1779223859000,-5000.0,0.00032363,2]
[422665959,1779223859000,-5000.0,0.00032363,2]
[422665966,1779223859000,-5000.0,0.00032453,2]
[422665962,1779223859000,-152.0,0.00032412,4]
[422665967,1779223859000,-5000.0,0.00032453,2]
[422665968,1779223859000,-362.1644251,0.00032485,30]
[422665954,1779223859000,-503.0,0.00032294,7]
[422665957,1779223859000,-5059.79459802,0.00032363,2]
[422665965,1779223859000,-338.0,0.00032437,2]
[422665958,1779223859000,-5000.0,0.00032363,2]
[422665955,1779223859000,-909.03877955,0.000323,2]
[422666040,1779223860000,-350.0,0.00033014,5]
[422666041,1779223860000,-3583.52828157,0.00033068,2]
[422666043,1779223860000,-152.0,0.00033187,30]
[422666036,1779223860000,-37997.92926567,0.00033,3]
[422666042,1779223860000,-157.0,0.00033161,30]
[422666038,1779223860000,-625.0,0.00033,2]
[422666037,1779223860000,-208.58623393,0.00033,120]
[422666035,1779223860000,-571.941217,0.00033,14]
[422666031,1779223860000,-167.42101506,0.00033,120]
[422666032,1779223860000,-192.30854507,0.00033,120]
[422666039,1779223860000,-3544.0,0.00033,2]
[422666044,1779223860000,-300.0,0.00033187,30]
[422666051,1779223860000,-251.0,0.00033212,30]
[422666047,1779223860000,-157.0,0.00033187,30]
[422666046,1779223860000,-153.0,0.00033187,30]
[422666054,1779223860000,-151.0,0.000333,2]
[422666053,1779223860000,-1836.06442509,0.00033268,30]
[422666052,1779223860000,-390.0,0.00033212,30]
[422666048,1779223860000,-328.0,0.00033187,30]
[422666050,1779223860000,-154.0,0.00033212,30]
[422666056,1779223860000,-1300.0,0.00033358,60]
[422666049,1779223860000,-164.0,0.00033212,30]
[422666057,1779223860000,-10440.4274639,0.00033476,2]
[422666058,1779223860000,-5797.1598941,0.00033493,2]
[422666027,1779223860000,-503.0,0.00032939,8]
[422666059,1779223860000,-1232.86713795,0.000335,2]
[422666045,1779223860000,-152.0,0.00033187,30]
[422666024,1779223860000,-500.0,0.00032877,2]
[422666015,1779223860000,-1000.0,0.00032877,120]
[422666026,1779223860000,-347.65,0.000329,120]
[422666061,1779223860000,-97585.2435753,0.00033509,2]
[422666007,1779223860000,-1304.979961,0.00032877,7]
[422666008,1779223860000,-1304.979961,0.00032877,7]
[422666009,1779223860000,-1304.979961,0.00032877,7]
[422666001,1779223860000,-1304.979961,0.00032877,7]
[422666006,1779223860000,-1304.979961,0.00032877,7]
[422666005,1779223860000,-1304.979961,0.00032877,7]
[422666002,1779223860000,-1304.979961,0.00032877,7]
[422666004,1779223860000,-1304.979961,0.00032877,7]
[422666003,1779223860000,-1304.979961,0.00032877,7]
[422666010,1779223860000,-749.6,0.00032877,2]
[422666011,1779223860000,-151.0,0.00032877,7]
[422666021,1779223860000,-500.0,0.00032877,2]
[422666012,1779223860000,-151.0,0.00032877,7]
[422666018,1779223860000,-500.0,0.00032877,2]
[422666014,1779223860000,-1000.0,0.00032877,30]
[422666019,1779223860000,-417.09344142,0.00032877,2]
[422666016,1779223860000,-3643.0,0.00032877,120]
[422666020,1779223860000,-500.0,0.00032877,2]
[422666017,1779223860000,-167.23916692,0.00032877,2]
[422666033,1779223860000,-6865.5,0.00033,14]
[422666034,1779223860000,-52188.56887323,0.00033,2]
[422666022,1779223860000,-500.0,0.00032877,2]
[422666023,1779223860000,-500.0,0.00032877,2]
[422666030,1779223860000,-3806.18,0.00032998,14]
[422666025,1779223860000,-14022.34890778,0.000329,120]
[422666028,1779223860000,-2314.0,0.00032981,11]
[422666029,1779223860000,-1587.0,0.00032981,11]
[422666055,1779223860000,-150.0,0.00033302,2]
[422666013,1779223860000,-1000.0,0.00032877,30]
[422666063,1779223860000,-13345.8005702,0.00033509,2]
[422666099,1779223860000,-212.0,0.00034247,2]
[422666097,1779223860000,-1000.0,0.00034247,120]
[422666094,1779223860000,-503.0,0.00034228,9]
[422666092,1779223860000,-251.0,0.00034212,30]
[422666095,1779223860000,-163.0,0.00034232,3]
[422666100,1779223860000,-5231.64,0.00034283,14]
[422666090,1779223860000,-164.0,0.00034212,30]
[422666101,1779223860000,-249.93761937,0.0003436,2]
[422666102,1779223860000,-249.93761937,0.0003436,7]
[422666104,1779223860000,-431.2943849,0.0003436,7]
[422666108,1779223860000,-161.38144401,0.0003436,2]
[422666105,1779223860000,-500.0,0.0003436,2]
[422666103,1779223860000,-431.2943849,0.0003436,2]
[422666112,1779223860000,-1197.4983951,0.00034479,2]
[422666107,1779223860000,-169.90510779,0.0003436,7]
[422666111,1779223860000,-3592.4951851,0.00034463,2]
[422666110,1779223860000,-600.0,0.00034454,60]
[422666109,1779223860000,-161.38144401,0.0003436,7]
[422666106,1779223860000,-500.0,0.0003436,7]
[422666113,1779223860000,-10234.796639,0.00034479,2]
[422666060,1779223860000,-2790.4066522,0.00033509,2]
[422666115,1779223860000,-1000.0,0.00034481,2]
[422666118,1779223860000,-231.7,0.00034521,120]
[422666119,1779223860000,-378.81,0.00034544,60]
[422666116,1779223860000,-1506.50712886,0.00034481,2]
[422666117,1779223860000,-1000.0,0.00034481,2]
[422666120,1779223860000,-2310.03,0.00034544,60]
[422666093,1779223860000,-390.0,0.00034212,30]
[422666096,1779223860000,-500.0,0.00034246,2]
[422666114,1779223860000,-1000.0,0.00034481,2]
[422666091,1779223860000,-154.0,0.00034212,30]
[422666098,1779223860000,-165.0,0.00034247,2]
[422666062,1779223860000,-26157.2908074,0.00033509,2]
[422666073,1779223860000,-398.123999,0.00033771,19]
[422666064,1779223860000,-1023.53929995,0.00033513,2]
[422666068,1779223860000,-156.78561113,0.000336,120]
[422666067,1779223860000,-503.0,0.00033584,9]
[422666074,1779223860000,-1275.7,0.000339,120]
[422666069,1779223860000,-265.39,0.000336,30]
[422666071,1779223860000,-382.811538,0.000337,19]
[422666072,1779223860000,-398.123999,0.00033756,19]
[422666066,1779223860000,-997.38590535,0.00033517,7]
[422666070,1779223860000,-280.0,0.0003366,30]
[422666076,1779223860000,-1220.86,0.00033963,30]
[422666065,1779223860000,-1512.88401212,0.00033517,7]
[422666087,1779223860000,-157.0,0.00034187,30]
[422666075,1779223860000,-1092.19,0.00033902,30]
[422666083,1779223860000,-152.0,0.00034187,30]
[422666089,1779223860000,-150.0,0.0003419,2]
[422666081,1779223860000,-157.0,0.00034161,30]
[422666079,1779223860000,-2204.5144251,0.00034051,30]
[422666085,1779223860000,-152.0,0.00034187,30]
[422666082,1779223860000,-382.3,0.00034182,7]
[422666080,1779223860000,-3583.52828154,0.00034076,2]
[422666078,1779223860000,-649.06336401,0.00034,4]
[422666077,1779223860000,-350.0,0.00033973,5]
[422666086,1779223860000,-153.0,0.00034187,30]
[422666088,1779223860000,-328.0,0.00034187,30]
[422666084,1779223860000,-300.0,0.00034187,30]
[422666146,1779223861000,-163.86166734,0.00035096,30]
[422666147,1779223861000,-159.40676161,0.00035161,30]
[422666149,1779223861000,-300.0,0.00035187,30]
[422666148,1779223861000,-152.0,0.00035187,30]
[422666150,1779223861000,-152.0,0.00035187,30]
[422666151,1779223861000,-153.0,0.00035187,30]
[422666153,1779223861000,-328.0,0.00035187,30]
[422666155,1779223861000,-164.0,0.00035212,30]
[422666152,1779223861000,-157.0,0.00035187,30]
[422666159,1779223861000,-163.86166734,0.00035288,30]
[422666160,1779223861000,-150.0,0.00035315,120]
[422666164,1779223861000,-141276.81711682,0.0003561,2]
[422666158,1779223861000,-390.0,0.00035212,30]
[422666157,1779223861000,-251.0,0.00035212,30]
[422666161,1779223861000,-163.86166734,0.00035479,30]
[422666163,1779223861000,-233.69,0.000356,120]
[422666156,1779223861000,-154.0,0.00035212,30]
[422666162,1779223861000,-503.0,0.00035518,11]
[422666143,1779223861000,-1300.0,0.00035002,60]
[422666154,1779223861000,-1500.0,0.000352,7]
[422666145,1779223861000,-3583.52828154,0.00035084,2]
[422666133,1779223861000,-150.8171,0.00034967,2]
[422666142,1779223861000,-17833.31937454,0.00035,8]
[422666123,1779223861000,-399.1948253,0.00034587,2]
[422666121,1779223861000,-102821.39,0.00034544,60]
[422666127,1779223861000,-1194.12918328,0.0003487,2]
[422666126,1779223861000,-3806.18,0.00034855,30]
[422666124,1779223861000,-1500.0,0.00034795,2]
[422666122,1779223861000,-3313.18,0.00034544,60]
[422666125,1779223861000,-2572.9944251,0.00034834,30]
[422666128,1779223861000,-503.0,0.00034873,10]
[422666132,1779223861000,-350.0,0.00034931,5]
[422666144,1779223861000,-584.54968935,0.00035083,2]
[422666134,1779223861000,-1503.62641657,0.00035,5]
[422666129,1779223861000,-1765.03134748,0.00034875,7]
[422666131,1779223861000,-163.86166734,0.00034904,30]
[422666135,1779223861000,-10000.0,0.00035,9]
[422666136,1779223861000,-1951.8169808,0.00035,2]
[422666137,1779223861000,-151.0,0.00035,5]
[422666139,1779223861000,-150.0,0.00035,2]
[422666141,1779223861000,-76487.30514655,0.00035,2]
[422666140,1779223861000,-5201.18432691,0.00035,2]
[422666138,1779223861000,-526.0,0.00035,5]
[422666130,1779223861000,-1275.7,0.000349,120]
[422666165,1779223861000,-861.94999999,0.00035616,60]
[422666169,1779223861000,-1000.0,0.00035616,120]
[422666167,1779223861000,-1000.0,0.00035616,120]
[422666193,1779223861000,-163.86166734,0.00035671,30]
[422666194,1779223861000,-151.0,0.00035686,14]
[422666199,1779223861000,-221.911184,0.00035689,7]
[422666198,1779223861000,-151.0,0.00035689,7]
[422666196,1779223861000,-757836.86936738,0.00035689,2]
[422666195,1779223861000,-192.51,0.00035688,120]
[422666197,1779223861000,-239.50437,0.00035689,2]
[422666200,1779223861000,-221.911184,0.00035689,7]
[422666202,1779223861000,-221.911184,0.00035689,7]
[422666201,1779223861000,-221.911184,0.00035689,7]
[422666205,1779223861000,-151.0,0.00035689,7]
[422666206,1779223861000,-151.0,0.00035689,7]
[422666207,1779223861000,-151.0,0.00035689,7]
[422666204,1779223861000,-151.0,0.00035689,7]
[422666208,1779223861000,-258.112699,0.00035689,7]
[422666209,1779223861000,-151.0,0.00035689,7]
[422666210,1779223861000,-151.0,0.00035689,7]
[422666211,1779223861000,-474.477655,0.00035689,7]
[422666166,1779223861000,-2941.47400316,0.00035616,30]
[422666191,1779223861000,-294.736412,0.00035624,30]
[422666190,1779223861000,-150.0,0.0003562,30]
[422666203,1779223861000,-151.0,0.00035689,7]
[422666187,1779223861000,-1000.0,0.00035616,10]
[422666168,1779223861000,-500.0,0.00035616,2]
[422666192,1779223861000,-627.74364842,0.00035643,120]
[422666172,1779223861000,-221.911184,0.00035616,7]
[422666171,1779223861000,-221.911184,0.00035616,7]
[422666170,1779223861000,-221.911184,0.00035616,7]
[422666173,1779223861000,-221.911184,0.00035616,7]
[422666175,1779223861000,-221.911184,0.00035616,7]
[422666176,1779223861000,-221.911184,0.00035616,7]
[422666177,1779223861000,-221.911184,0.00035616,7]
[422666181,1779223861000,-221.911184,0.00035616,7]
[422666174,1779223861000,-221.911184,0.00035616,7]
[422666179,1779223861000,-221.911184,0.00035616,7]
[422666178,1779223861000,-221.911184,0.00035616,7]
[422666182,1779223861000,-1000.0,0.00035616,10]
[422666186,1779223861000,-1000.0,0.00035616,10]
[422666183,1779223861000,-1000.0,0.00035616,10]
[422666184,1779223861000,-1000.0,0.00035616,10]
[422666185,1779223861000,-1000.0,0.00035616,10]
[422666180,1779223861000,-221.911184,0.00035616,7]
[422666189,1779223861000,-749.6,0.00035616,2]
[422666188,1779223861000,-194.0,0.00035616,10]
[422666239,1779223862000,-151.0,0.00035689,7]
[422666255,1779223862000,-151.0,0.00035689,7]
[422666257,1779223862000,-151.0,0.00035689,7]
[422666256,1779223862000,-151.0,0.00035689,7]
[422666254,1779223862000,-151.0,0.00035689,7]
[422666237,1779223862000,-151.0,0.00035689,7]
[422666247,1779223862000,-978.198356,0.00035689,7]
[422666238,1779223862000,-151.0,0.00035689,7]
[422666236,1779223862000,-167.497542,0.00035689,7]
[422666251,1779223862000,-151.0,0.00035689,7]
[422666246,1779223862000,-151.0,0.00035689,7]
[422666250,1779223862000,-293.870436,0.00035689,7]
[422666264,1779223862000,-1275.7,0.000359,120]
[422666248,1779223862000,-978.198356,0.00035689,7]
[422666249,1779223862000,-978.198356,0.00035689,7]
[422666253,1779223862000,-234.52144,0.00035689,7]
[422666258,1779223862000,-151.0,0.00035689,7]
[422666261,1779223862000,-163.86166734,0.00035863,30]
[422666262,1779223862000,-350.0,0.0003589,5]
[422666260,1779223862000,-10139.43599515,0.00035804,7]
[422666265,1779223862000,-1054.96,0.00035966,30]
[422666268,1779223862000,-1000.0,0.00036048,2]
[422666267,1779223862000,-1179.24,0.00036031,30]
[422666266,1779223862000,-3544.0,0.00036,2]
[422666240,1779223862000,-151.0,0.00035689,7]
[422666252,1779223862000,-151.0,0.00035689,7]
[422666242,1779223862000,-234.357101,0.00035689,7]
[422666220,1779223862000,-151.0,0.00035689,7]
[422666235,1779223862000,-167.497542,0.00035689,7]
[422666212,1779223862000,-474.477655,0.00035689,7]
[422666213,1779223862000,-474.477655,0.00035689,7]
[422666216,1779223862000,-1304.979961,0.00035689,7]
[422666222,1779223862000,-338.091489,0.00035689,7]
[422666214,1779223862000,-474.477655,0.00035689,7]
[422666215,1779223862000,-1304.979961,0.00035689,7]
[422666217,1779223862000,-1304.979961,0.00035689,7]
[422666218,1779223862000,-1304.979961,0.00035689,7]
[422666219,1779223862000,-151.0,0.00035689,7]
[422666221,1779223862000,-338.091489,0.00035689,7]
[422666230,1779223862000,-254.52837,0.00035689,7]
[422666227,1779223862000,-330.848722,0.00035689,7]
[422666228,1779223862000,-330.848722,0.00035689,7]
[422666263,1779223862000,-150.0,0.00035899,2]
[422666232,1779223862000,-254.52837,0.00035689,7]
[422666231,1779223862000,-254.52837,0.00035689,7]
[422666225,1779223862000,-330.848722,0.00035689,7]
[422666224,1779223862000,-338.091489,0.00035689,7]
[422666233,1779223862000,-167.497542,0.00035689,7]
[422666223,1779223862000,-338.091489,0.00035689,7]
[422666229,1779223862000,-254.52837,0.00035689,7]
[422666243,1779223862000,-151.0,0.00035689,7]
[422666234,1779223862000,-167.497542,0.00035689,7]
[422666244,1779223862000,-153.008392,0.00035689,7]
[422666245,1779223862000,-978.198356,0.00035689,7]
[422666241,1779223862000,-151.0,0.00035689,7]
[422666259,1779223862000,-151.0,0.00035689,7]
[422666226,1779223862000,-330.848722,0.00035689,7]
[422666270,1779223862000,-1006.30158814,0.00036048,2]
[422666298,1779223862000,-500.0,0.00036193,2]
[422666302,1779223862000,-382.811538,0.000362,31]
[422666304,1779223862000,-164.0,0.00036212,30]
[422666306,1779223862000,-251.0,0.00036212,30]
[422666303,1779223862000,-382.811538,0.000362,31]
[422666314,1779223862000,-2061.2927,0.00036272,2]
[422666305,1779223862000,-154.0,0.00036212,30]
[422666307,1779223862000,-390.0,0.00036212,30]
[422666308,1779223862000,-181.23,0.00036237,10]
[422666310,1779223862000,-200.0,0.00036266,5]
[422666313,1779223862000,-6009.5654,0.00036272,2]
[422666309,1779223862000,-163.86166734,0.00036247,30]
[422666312,1779223862000,-3712.9203,0.00036272,2]
[422666315,1779223862000,-250.0,0.00036289,7]
[422666318,1779223862000,-200.0,0.00036289,5]
[422666317,1779223862000,-200.0,0.00036289,5]
[422666321,1779223862000,-449.74,0.000363,120]
[422666320,1779223862000,-182.41,0.000363,120]
[422666319,1779223862000,-200.0,0.0003629,5]
[422666323,1779223862000,-398.123999,0.00036311,31]
[422666316,1779223862000,-250.0,0.00036289,7]
[422666325,1779223862000,-1587.0,0.00036358,11]
[422666324,1779223862000,-398.123999,0.00036343,31]
[422666322,1779223862000,-398.123999,0.00036311,31]
[422666269,1779223862000,-1000.0,0.00036048,2]
[422666293,1779223862000,-500.0,0.00036193,2]
[422666299,1779223862000,-500.0,0.00036193,2]
[422666311,1779223862000,-152.0,0.0003627,5]
[422666301,1779223862000,-1285.89,0.00036193,2]
[422666300,1779223862000,-750.29,0.00036193,2]
[422666274,1779223862000,-382.3,0.00036153,30]
[422666271,1779223862000,-163.86166734,0.00036055,30]
[422666275,1779223862000,-503.0,0.00036162,11]
[422666272,1779223862000,-3583.52828154,0.00036092,2]
[422666278,1779223862000,-152.0,0.00036187,30]
[422666276,1779223862000,-152.0,0.00036187,30]
[422666277,1779223862000,-300.0,0.00036187,30]
[422666279,1779223862000,-165.61,0.00036187,30]
[422666280,1779223862000,-328.0,0.00036187,30]
[422666282,1779223862000,-500.0,0.00036193,2]
[422666283,1779223862000,-500.0,0.00036193,2]
[422666281,1779223862000,-500.0,0.00036193,2]
[422666273,1779223862000,-433.78795255,0.00036098,60]
[422666295,1779223862000,-500.0,0.00036193,2]
[422666284,1779223862000,-500.0,0.00036193,2]
[422666296,1779223862000,-500.0,0.00036193,2]
[422666297,1779223862000,-500.0,0.00036193,2]
[422666294,1779223862000,-500.0,0.00036193,2]
[422666288,1779223862000,-500.0,0.00036193,2]
[422666292,1779223862000,-500.0,0.00036193,2]
[422666290,1779223862000,-500.0,0.00036193,2]
[422666289,1779223862000,-500.0,0.00036193,2]
[422666291,1779223862000,-500.0,0.00036193,2]
[422666287,1779223862000,-500.0,0.00036193,2]
[422666285,1779223862000,-500.0,0.00036193,2]
[422666286,1779223862000,-500.0,0.00036193,2]
[422666364,1779223863000,-300.0,0.00036373,2]
[422666370,1779223863000,-300.0,0.00036373,2]
[422666363,1779223863000,-300.0,0.00036373,2]
[422666362,1779223863000,-484.49907688,0.00036373,2]
[422666356,1779223863000,-452.28042625,0.00036373,2]
[422666353,1779223863000,-300.0,0.00036373,2]